[Event "*** Titled Tuesday Blitz"]
[Site "Chess.com"]
[Date "2021.03.02"]
[Round "10"]
[White "Pantata007"]
[Black "Atco84"]
[Result "0-1"]
[WhiteElo "2242"]
[BlackElo "2401"]
[TimeControl "180+1"]
[EndTime "11:58:02 PST"]
[Termination "Atco84 won on time"]

1. d4 {[%clk 0:03:00.9]} 1... e6 {[%clk 0:03:00]} 2. c4 {[%clk 0:02:59.7]} 2...
Bb4+ {[%clk 0:02:59.6]} 3. Bd2 {[%clk 0:02:56]} 3... Bxd2+ {[%clk 0:02:59.5]} 4.
Qxd2 {[%clk 0:02:56.7]} 4... f5 {[%clk 0:03:00.2]} 5. Nc3 {[%clk 0:02:51.9]}
5... Nf6 {[%clk 0:03:01.1]} 6. g3 {[%clk 0:02:44.9]} 6... O-O {[%clk 0:03:01.2]}
7. Bg2 {[%clk 0:02:45.2]} 7... d6 {[%clk 0:03:01.5]} 8. Nf3 {[%clk 0:02:45.2]}
8... Qe7 {[%clk 0:03:01.7]} 9. O-O {[%clk 0:02:44.9]} 9... c6 {[%clk 0:03:02.2]}
10. Rfe1 {[%clk 0:02:41.9]} 10... d5 {[%clk 0:03:02.6]} 11. Ne5 {[%clk
0:02:08.3]} 11... Nbd7 {[%clk 0:03:01.8]} 12. Nxd7 {[%clk 0:02:07.4]} 12... Bxd7
{[%clk 0:03:02.7]} 13. f3 {[%clk 0:02:07.8]} 13... dxc4 {[%clk 0:02:59.3]} 14.
e4 {[%clk 0:02:02.1]} 14... Qb4 {[%clk 0:02:55.5]} 15. a3 {[%clk 0:01:37]} 15...
Qa5 {[%clk 0:02:46.4]} 16. Qe2 {[%clk 0:00:51.9]} 16... b5 {[%clk 0:02:43]} 17.
f4 {[%clk 0:00:40.8]} 17... Rad8 {[%clk 0:02:40.4]} 18. exf5 {[%clk 0:00:30.1]}
18... exf5 {[%clk 0:02:41.3]} 19. Bxc6 {[%clk 0:00:25]} 19... Qb6 {[%clk
0:02:33.1]} 20. Bxd7 {[%clk 0:00:19.3]} 20... Qxd4+ {[%clk 0:02:30.2]} 21. Qe3
{[%clk 0:00:19.3]} 21... Rxd7 {[%clk 0:02:12.3]} 22. Nxb5 {[%clk 0:00:16.4]}
22... Qxe3+ {[%clk 0:02:11.7]} 23. Rxe3 {[%clk 0:00:17.3]} 23... Rd2 {[%clk
0:02:11.8]} 24. Rb1 {[%clk 0:00:12.5]} 24... a6 {[%clk 0:02:03.2]} 25. Nc3
{[%clk 0:00:12.3]} 25... Ng4 {[%clk 0:02:01.6]} 26. Re2 {[%clk 0:00:12]} 26...
Rfd8 {[%clk 0:02:02.1]} 27. Rbe1 {[%clk 0:00:10.9]} 27... Nf6 {[%clk 0:01:45.6]}
28. Rxd2 {[%clk 0:00:10.1]} 28... Rxd2 {[%clk 0:01:45.5]} 29. Re2 {[%clk
0:00:11]} 29... Rd3 {[%clk 0:01:44.7]} 30. Kf2 {[%clk 0:00:10.2]} 30... h5
{[%clk 0:01:42.3]} 31. Ke1 {[%clk 0:00:07]} 31... h4 {[%clk 0:01:40.4]} 32. Rd2
{[%clk 0:00:06.7]} 32... Rf3 {[%clk 0:01:10.1]} 33. Rf2 {[%clk 0:00:05.9]} 33...
Re3+ {[%clk 0:01:07.8]} 34. Re2 {[%clk 0:00:06]} 34... Rxe2+ {[%clk 0:00:55.4]}
35. Kxe2 {[%clk 0:00:05.9]} 35... h3 {[%clk 0:00:55.7]} 36. Kf3 {[%clk
0:00:05.6]} 36... Ng4 {[%clk 0:00:53.8]} 37. Nd5 {[%clk 0:00:03.9]} 37... Kf7
{[%clk 0:00:53.8]} 38. Ne3 {[%clk 0:00:03.3]} 38... Nxh2+ {[%clk 0:00:54.5]} 39.
Kf2 {[%clk 0:00:03.4]} 39... Ng4+ {[%clk 0:00:54.5]} 0-1

[Event "*** Titled Tuesday Blitz"]
[Site "Chess.com"]
[Date "2021.03.02"]
[Round "10"]
[White "eCztery"]
[Black "sau6on"]
[Result "1-0"]
[WhiteElo "2410"]
[BlackElo "2478"]
[TimeControl "180+1"]
[EndTime "11:58:04 PST"]
[Termination "eCztery won on time"]

1. e4 {[%clk 0:03:00.9]} 1... c5 {[%clk 0:02:53.2]} 2. Nf3 {[%clk 0:03:00.3]}
2... d6 {[%clk 0:02:52.7]} 3. d4 {[%clk 0:03:00.2]} 3... cxd4 {[%clk 0:02:53.3]}
4. Qxd4 {[%clk 0:03:01.1]} 4... Nc6 {[%clk 0:02:52.1]} 5. Bb5 {[%clk 0:03:00.2]}
5... Bd7 {[%clk 0:02:52.1]} 6. Bxc6 {[%clk 0:03:00.3]} 6... Bxc6 {[%clk
0:02:53]} 7. Nc3 {[%clk 0:03:00.3]} 7... h6 {[%clk 0:02:52.6]} 8. Be3 {[%clk
0:02:57.3]} 8... e5 {[%clk 0:02:52.4]} 9. Qd3 {[%clk 0:02:57.3]} 9... Nf6 {[%clk
0:02:52.5]} 10. O-O-O {[%clk 0:02:57.2]} 10... Be7 {[%clk 0:02:19.5]} 11. Kb1
{[%clk 0:02:54.1]} 11... O-O {[%clk 0:02:17.2]} 12. g4 {[%clk 0:02:41.3]} 12...
Nxg4 {[%clk 0:02:10.5]} 13. Rhg1 {[%clk 0:02:41.5]} 13... Nxe3 {[%clk
0:02:09.6]} 14. Qxe3 {[%clk 0:02:42.4]} 14... Kh7 {[%clk 0:02:05.6]} 15. Nxe5
{[%clk 0:02:36.9]} 15... Qa5 {[%clk 0:01:58]} 16. Nc4 {[%clk 0:02:26]} 16... Qc5
{[%clk 0:01:37.7]} 17. Qg3 {[%clk 0:02:13.6]} 17... Bf6 {[%clk 0:01:31.9]} 18.
Nxd6 {[%clk 0:01:52.7]} 18... Rad8 {[%clk 0:01:21.5]} 19. Nf5 {[%clk 0:01:46.4]}
19... g6 {[%clk 0:01:09.4]} 20. Rxd8 {[%clk 0:01:35.1]} 20... Rxd8 {[%clk
0:01:04.1]} 21. e5 {[%clk 0:00:18.8]} 21... Bxe5 {[%clk 0:00:24.5]} 22. Qh4
{[%clk 0:00:18.6]} 22... gxf5 {[%clk 0:00:11]} 23. Qxd8 {[%clk 0:00:18.3]} 23...
Bg7 {[%clk 0:00:10.2]} 24. Qd3 {[%clk 0:00:16.5]} 1-0

[Event "*** Titled Tuesday Blitz"]
[Site "Chess.com"]
[Date "2021.03.02"]
[Round "10"]
[White "anon219"]
[Black "PSvidler"]
[Result "0-1"]
[WhiteElo "2859"]
[BlackElo "2928"]
[TimeControl "180+1"]
[EndTime "11:58:06 PST"]
[Termination "PSvidler won on time"]

1. e4 {[%clk 0:03:00.9]} 1... c5 {[%clk 0:02:57.9]} 2. Nf3 {[%clk 0:03:00.8]}
2... d6 {[%clk 0:02:57.5]} 3. d4 {[%clk 0:02:59.2]} 3... cxd4 {[%clk 0:02:57.6]}
4. Nxd4 {[%clk 0:02:59.8]} 4... Nf6 {[%clk 0:02:58.2]} 5. Nc3 {[%clk 0:03:00.3]}
5... a6 {[%clk 0:02:58.6]} 6. g3 {[%clk 0:03:00.9]} 6... g6 {[%clk 0:02:56]} 7.
Bg2 {[%clk 0:03:00.7]} 7... Bg7 {[%clk 0:02:56.4]} 8. O-O {[%clk 0:03:00.8]}
8... O-O {[%clk 0:02:56.4]} 9. Nce2 {[%clk 0:03:01]} 9... Qc7 {[%clk 0:02:49.5]}
10. h3 {[%clk 0:02:47.7]} 10... Nc6 {[%clk 0:02:46.3]} 11. a4 {[%clk 0:02:41.3]}
11... Bd7 {[%clk 0:02:43.7]} 12. Be3 {[%clk 0:02:30.9]} 12... Rfc8 {[%clk
0:02:38.4]} 13. c3 {[%clk 0:02:18.8]} 13... Na5 {[%clk 0:02:34.2]} 14. Qc2
{[%clk 0:01:35.9]} 14... e5 {[%clk 0:02:28.2]} 15. Nf3 {[%clk 0:01:30.7]} 15...
Nc4 {[%clk 0:02:10.1]} 16. Bg5 {[%clk 0:01:28.8]} 16... b5 {[%clk 0:02:06.4]}
17. axb5 {[%clk 0:01:23.6]} 17... axb5 {[%clk 0:02:05.9]} 18. b3 {[%clk
0:01:23.9]} 18... Na5 {[%clk 0:01:57.5]} 19. Rfd1 {[%clk 0:01:17.1]} 19... Be6
{[%clk 0:01:56.1]} 20. Nd2 {[%clk 0:01:14.5]} 20... Nd7 {[%clk 0:01:47.1]} 21.
Rab1 {[%clk 0:01:05.2]} 21... Nc6 {[%clk 0:01:44.8]} 22. Nf1 {[%clk 0:01:02.2]}
22... Nd4 {[%clk 0:01:39.1]} 23. Nxd4 {[%clk 0:00:51.5]} 23... exd4 {[%clk
0:01:39.2]} 24. Bf4 {[%clk 0:00:39.3]} 24... Qxc3 {[%clk 0:01:35.1]} 25. Qe2
{[%clk 0:00:34.1]} 25... Ne5 {[%clk 0:01:34.8]} 26. Qxb5 {[%clk 0:00:26]} 26...
Rab8 {[%clk 0:01:26.3]} 27. Qa6 {[%clk 0:00:25.6]} 27... Qb4 {[%clk 0:00:49.8]}
28. Qa4 {[%clk 0:00:16.3]} 28... Bxb3 {[%clk 0:00:43.6]} 29. Qxb4 {[%clk
0:00:14.7]} 29... Rxb4 {[%clk 0:00:44.5]} 30. Nd2 {[%clk 0:00:12.2]} 30... Bxd1
{[%clk 0:00:42.1]} 31. Rxb4 {[%clk 0:00:12.3]} 31... Nd3 {[%clk 0:00:41.8]} 32.
Rb1 {[%clk 0:00:08.4]} 32... Bc2 {[%clk 0:00:39.4]} 33. Ra1 {[%clk 0:00:04.7]}
33... Nxf4 {[%clk 0:00:39.2]} 34. gxf4 {[%clk 0:00:05.3]} 34... Bh6 {[%clk
0:00:39.4]} 35. Nf3 {[%clk 0:00:03]} 35... d3 {[%clk 0:00:39.6]} 0-1

[Event "*** Titled Tuesday Blitz"]
[Site "Chess.com"]
[Date "2021.03.02"]
[Round "10"]
[White "Karla"]
[Black "Kislov_Oleg"]
[Result "1-0"]
[WhiteElo "2365"]
[BlackElo "2485"]
[TimeControl "180+1"]
[EndTime "11:58:06 PST"]
[Termination "Karla won by resignation"]

1. e4 {[%clk 0:03:00.9]} 1... c5 {[%clk 0:02:57.9]} 2. d4 {[%clk 0:03:01.8]}
2... cxd4 {[%clk 0:02:56.1]} 3. c3 {[%clk 0:03:02.7]} 3... dxc3 {[%clk
0:02:55.6]} 4. Nxc3 {[%clk 0:03:03.6]} 4... Nc6 {[%clk 0:02:54.8]} 5. Nf3 {[%clk
0:02:56.2]} 5... e6 {[%clk 0:02:53.8]} 6. Bc4 {[%clk 0:02:54.4]} 6... a6 {[%clk
0:02:53.9]} 7. O-O {[%clk 0:02:51.6]} 7... d6 {[%clk 0:02:53.1]} 8. Qe2 {[%clk
0:02:46.8]} 8... b5 {[%clk 0:02:53.1]} 9. Bb3 {[%clk 0:02:45]} 9... Ra7 {[%clk
0:02:52.4]} 10. Be3 {[%clk 0:02:41.3]} 10... Rd7 {[%clk 0:02:51.9]} 11. Rac1
{[%clk 0:02:38.1]} 11... Bb7 {[%clk 0:02:50.9]} 12. Nxb5 {[%clk 0:02:36.6]}
12... axb5 {[%clk 0:02:48.2]} 13. Qxb5 {[%clk 0:02:34.8]} 13... Qa8 {[%clk
0:02:30.5]} 14. Ba4 {[%clk 0:02:30.9]} 14... Nge7 {[%clk 0:02:15.9]} 15. Nd4
{[%clk 0:02:28.9]} 15... Rc7 {[%clk 0:01:45.9]} 16. Qb6 {[%clk 0:02:28]} 16...
Kd7 {[%clk 0:01:31.4]} 17. Nb5 {[%clk 0:02:09.6]} 17... Rc8 {[%clk 0:01:08.3]}
18. Rfd1 {[%clk 0:02:00.9]} 18... d5 {[%clk 0:00:59.7]} 19. exd5 {[%clk
0:01:55.2]} 19... Nxd5 {[%clk 0:00:58.2]} 20. Nc3 {[%clk 0:01:50.3]} 20... Bd6
{[%clk 0:00:40.8]} 21. Nxd5 {[%clk 0:01:44.6]} 21... exd5 {[%clk 0:00:32.8]} 22.
Rxd5 {[%clk 0:01:45.5]} 22... Qxa4 {[%clk 0:00:26.4]} 23. Qxb7+ {[%clk
0:01:40.5]} 23... Rc7 {[%clk 0:00:26.5]} 24. Qb6 {[%clk 0:01:39]} 24... Ke6
{[%clk 0:00:19.8]} 25. Rxd6+ {[%clk 0:01:35.5]} 25... Kxd6 {[%clk 0:00:19.6]}
26. b3 {[%clk 0:01:33.1]} 26... Qg4 {[%clk 0:00:14.5]} 27. h3 {[%clk 0:01:21.8]}
27... Qc8 {[%clk 0:00:12.3]} 28. Bf4+ {[%clk 0:01:20.6]} 28... Kd7 {[%clk
0:00:11]} 29. Rd1+ {[%clk 0:01:17.3]} 29... Ke7 {[%clk 0:00:09.6]} 30. Bxc7
{[%clk 0:01:15.8]} 30... Qe6 {[%clk 0:00:09.2]} 31. Qc5+ {[%clk 0:01:10.8]}
31... Ke8 {[%clk 0:00:06.3]} 32. Bd6 {[%clk 0:01:01.4]} 32... Nd8 {[%clk
0:00:05.7]} 33. Qc7 {[%clk 0:00:57.7]} 33... f6 {[%clk 0:00:05.1]} 34. Ba3
{[%clk 0:00:53]} 34... Nf7 {[%clk 0:00:03.9]} 35. Qb8+ {[%clk 0:00:42.8]} 35...
Nd8 {[%clk 0:00:02]} 36. Rxd8+ {[%clk 0:00:41.8]} 36... Kf7 {[%clk 0:00:02]} 1-0

[Event "*** Titled Tuesday Blitz"]
[Site "Chess.com"]
[Date "2021.03.02"]
[Round "10"]
[White "albi1999"]
[Black "InitiatingASC"]
[Result "1-0"]
[WhiteElo "2590"]
[BlackElo "2444"]
[TimeControl "180+1"]
[EndTime "11:58:09 PST"]
[Termination "albi1999 won by resignation"]

1. Nf3 {[%clk 0:03:00.9]} 1... Nf6 {[%clk 0:02:59.7]} 2. g3 {[%clk 0:03:01.7]}
2... g6 {[%clk 0:03:00.3]} 3. Bg2 {[%clk 0:03:02.6]} 3... Bg7 {[%clk 0:03:01]}
4. O-O {[%clk 0:03:03.3]} 4... O-O {[%clk 0:03:01.8]} 5. c4 {[%clk 0:03:03]}
5... d6 {[%clk 0:03:02]} 6. b3 {[%clk 0:03:03.5]} 6... Nc6 {[%clk 0:02:57]} 7.
d4 {[%clk 0:03:01.5]} 7... e5 {[%clk 0:02:56.5]} 8. dxe5 {[%clk 0:03:01.9]} 8...
dxe5 {[%clk 0:02:52.2]} 9. Ba3 {[%clk 0:02:59.8]} 9... Re8 {[%clk 0:02:48.1]}
10. Qxd8 {[%clk 0:02:58.5]} 10... Nxd8 {[%clk 0:02:46.9]} 11. Nc3 {[%clk
0:02:57.9]} 11... c6 {[%clk 0:02:44.1]} 12. Rad1 {[%clk 0:02:54.2]} 12... Bg4
{[%clk 0:02:39.9]} 13. h3 {[%clk 0:02:53.1]} 13... Bxf3 {[%clk 0:02:35.9]} 14.
exf3 {[%clk 0:02:51.4]} 14... Ne6 {[%clk 0:02:36.6]} 15. Ne2 {[%clk 0:02:43.3]}
15... Rad8 {[%clk 0:02:32.9]} 16. Bb2 {[%clk 0:02:42.8]} 16... Nd7 {[%clk
0:02:32.1]} 17. Rd2 {[%clk 0:02:30.5]} 17... Ndc5 {[%clk 0:02:16.2]} 18. Rfd1
{[%clk 0:02:30]} 18... a5 {[%clk 0:02:16.5]} 19. Bc3 {[%clk 0:02:20.3]} 19...
Rxd2 {[%clk 0:02:03.4]} 20. Rxd2 {[%clk 0:02:20]} 20... Ra8 {[%clk 0:02:04.1]}
21. h4 {[%clk 0:02:13.3]} 21... h5 {[%clk 0:02:03.3]} 22. Kf1 {[%clk 0:02:10.3]}
22... Ra7 {[%clk 0:01:49.7]} 23. Ke1 {[%clk 0:02:04]} 23... b5 {[%clk
0:01:49.4]} 24. cxb5 {[%clk 0:02:03.1]} 24... cxb5 {[%clk 0:01:49.5]} 25. Kd1
{[%clk 0:01:57.2]} 25... b4 {[%clk 0:01:47.4]} 26. Bb2 {[%clk 0:01:56.4]} 26...
a4 {[%clk 0:01:47.9]} 27. Kc2 {[%clk 0:01:54.4]} 27... a3 {[%clk 0:01:19.5]} 28.
Ba1 {[%clk 0:01:53.5]} 28... Rc7 {[%clk 0:01:16.2]} 29. Kb1 {[%clk 0:01:53.3]}
29... Bh6 {[%clk 0:00:56.3]} 30. Rd1 {[%clk 0:01:52.3]} 30... f6 {[%clk
0:00:51.9]} 31. Bh3 {[%clk 0:01:51.4]} 31... Kf7 {[%clk 0:00:51.7]} 32. Nc1
{[%clk 0:01:46.3]} 32... e4 {[%clk 0:00:37.9]} 33. f4 {[%clk 0:01:43.2]} 33...
Ng7 {[%clk 0:00:31.2]} 34. Rd6 {[%clk 0:01:34.9]} 34... Ne8 {[%clk 0:00:27.2]}
35. Rb6 {[%clk 0:01:31.5]} 35... g5 {[%clk 0:00:24.5]} 36. fxg5 {[%clk
0:01:27.3]} 36... Bg7 {[%clk 0:00:18.6]} 37. gxf6 {[%clk 0:01:16.9]} 37... Bh6
{[%clk 0:00:18.4]} 38. Ne2 {[%clk 0:01:11.7]} 38... Nd3 {[%clk 0:00:15.5]} 39.
Be6+ {[%clk 0:01:10.5]} 39... Kf8 {[%clk 0:00:14.9]} 40. Bc4 {[%clk 0:01:07.1]}
40... Nxf2 {[%clk 0:00:14.1]} 41. f7 {[%clk 0:01:07.2]} 41... Rxf7 {[%clk
0:00:08.1]} 42. Bxf7 {[%clk 0:01:07.1]} 42... Be3 {[%clk 0:00:06.2]} 43. Rxb4
{[%clk 0:00:57]} 43... Kxf7 {[%clk 0:00:06.5]} 44. Bd4 {[%clk 0:00:57.6]} 44...
Bc1 {[%clk 0:00:06.2]} 45. Bxf2 {[%clk 0:00:55.6]} 1-0

[Event "*** Titled Tuesday Blitz"]
[Site "Chess.com"]
[Date "2021.03.02"]
[Round "10"]
[White "CzechmVIII"]
[Black "GUST_b"]
[Result "0-1"]
[WhiteElo "2253"]
[BlackElo "2371"]
[TimeControl "180+1"]
[EndTime "11:58:09 PST"]
[Termination "GUST_b won on time"]

1. e4 {[%clk 0:03:00.9]} 1... c5 {[%clk 0:02:59.8]} 2. Nf3 {[%clk 0:03:01]} 2...
Nc6 {[%clk 0:03:00.2]} 3. Nc3 {[%clk 0:02:59.4]} 3... g6 {[%clk 0:02:59.9]} 4.
d4 {[%clk 0:02:58.8]} 4... cxd4 {[%clk 0:03:00.8]} 5. Nxd4 {[%clk 0:02:59.3]}
5... Bg7 {[%clk 0:03:01.7]} 6. Be3 {[%clk 0:02:59.1]} 6... Nf6 {[%clk 0:03:02]}
7. Bc4 {[%clk 0:02:59]} 7... O-O {[%clk 0:03:01.8]} 8. Bb3 {[%clk 0:02:58.7]}
8... d6 {[%clk 0:03:01.4]} 9. f3 {[%clk 0:02:54.9]} 9... Bd7 {[%clk 0:03:01.7]}
10. h4 {[%clk 0:02:54.8]} 10... h5 {[%clk 0:02:54.7]} 11. Qd2 {[%clk 0:02:54.6]}
11... Nxd4 {[%clk 0:02:54.3]} 12. Bxd4 {[%clk 0:02:53]} 12... b5 {[%clk
0:02:54.3]} 13. O-O-O {[%clk 0:02:11.9]} 13... a5 {[%clk 0:02:53.2]} 14. e5
{[%clk 0:01:53.7]} 14... dxe5 {[%clk 0:02:45.4]} 15. Bxe5 {[%clk 0:01:53.9]}
15... Bc6 {[%clk 0:02:36.9]} 16. Qg5 {[%clk 0:01:52.3]} 16... Qb6 {[%clk
0:02:28.1]} 17. Qxg6 {[%clk 0:01:34.3]} 17... Qe3+ {[%clk 0:02:25.4]} 18. Kb1
{[%clk 0:01:23.5]} 18... Qxe5 {[%clk 0:02:26.3]} 19. Rhe1 {[%clk 0:01:16.8]}
19... Qc5 {[%clk 0:02:23]} 20. Qg5 {[%clk 0:00:25.6]} 20... Qxg5 {[%clk
0:01:35.6]} 21. hxg5 {[%clk 0:00:26.5]} 21... Nd7 {[%clk 0:01:27.4]} 22. Rxe7
{[%clk 0:00:26.3]} 22... Nc5 {[%clk 0:01:21.8]} 23. Bd5 {[%clk 0:00:24.9]} 23...
Bxd5 {[%clk 0:01:19.7]} 24. Nxd5 {[%clk 0:00:24.7]} 24... Rad8 {[%clk
0:01:13.1]} 25. Rc7 {[%clk 0:00:16.8]} 25... Ne6 {[%clk 0:01:11]} 26. Rb7 {[%clk
0:00:10.8]} 26... b4 {[%clk 0:01:07.7]} 27. b3 {[%clk 0:00:10.1]} 27... Nxg5
{[%clk 0:00:59.2]} 28. Ne7+ {[%clk 0:00:09.1]} 28... Kh7 {[%clk 0:00:57.7]} 29.
Rd3 {[%clk 0:00:06.5]} 29... Ne6 {[%clk 0:00:53.4]} 30. Rb5 {[%clk 0:00:05.7]}
30... Rxd3 {[%clk 0:00:52.7]} 31. Rxh5+ {[%clk 0:00:05]} 31... Bh6 {[%clk
0:00:53.2]} 32. cxd3 {[%clk 0:00:03.6]} 32... Nf4 {[%clk 0:00:53.3]} 33. Rh4
{[%clk 0:00:03.1]} 33... Ng6 {[%clk 0:00:41.5]} 34. Rh2 {[%clk 0:00:03]} 34...
Nxe7 {[%clk 0:00:41.4]} 35. g4 {[%clk 0:00:01.8]} 35... Kg6 {[%clk 0:00:40.6]}
36. Rg2 {[%clk 0:00:01.7]} 36... Nd5 {[%clk 0:00:39.6]} 37. Re2 {[%clk
0:00:02.6]} 37... Rc8 {[%clk 0:00:39.5]} 38. Re4 {[%clk 0:00:01.9]} 38... Nc3+
{[%clk 0:00:39.7]} 0-1

[Event "*** Titled Tuesday Blitz"]
[Site "Chess.com"]
[Date "2021.03.02"]
[Round "10"]
[White "ecwinslow"]
[Black "Mazanchenko_Dmitry"]
[Result "0-1"]
[WhiteElo "2221"]
[BlackElo "2118"]
[TimeControl "180+1"]
[EndTime "11:58:10 PST"]
[Termination "Mazanchenko_Dmitry won by resignation"]

1. e4 {[%clk 0:03:00.9]} 1... c5 {[%clk 0:02:59.1]} 2. Nf3 {[%clk 0:03:00.6]}
2... d6 {[%clk 0:02:56.5]} 3. d4 {[%clk 0:03:00.1]} 3... Nf6 {[%clk 0:02:56.9]}
4. Nc3 {[%clk 0:02:57.5]} 4... cxd4 {[%clk 0:02:56.8]} 5. Nxd4 {[%clk
0:02:57.8]} 5... Nc6 {[%clk 0:02:57.7]} 6. f3 {[%clk 0:02:55.5]} 6... e5 {[%clk
0:02:54.6]} 7. Nb3 {[%clk 0:02:52.2]} 7... Be6 {[%clk 0:02:48.3]} 8. Be3 {[%clk
0:02:50]} 8... d5 {[%clk 0:02:47.9]} 9. exd5 {[%clk 0:02:45.9]} 9... Nxd5 {[%clk
0:02:48.8]} 10. Nxd5 {[%clk 0:02:43.9]} 10... Bxd5 {[%clk 0:02:49.7]} 11. c4
{[%clk 0:02:41.6]} 11... Be6 {[%clk 0:02:49.2]} 12. Kf2 {[%clk 0:02:36.1]} 12...
Be7 {[%clk 0:02:41.2]} 13. Nc5 {[%clk 0:02:23.1]} 13... Bc8 {[%clk 0:02:30.6]}
14. Qxd8+ {[%clk 0:02:21.1]} 14... Nxd8 {[%clk 0:02:26.5]} 15. Rd1 {[%clk
0:02:14]} 15... Ne6 {[%clk 0:02:11.6]} 16. Nxe6 {[%clk 0:02:05.1]} 16... Bxe6
{[%clk 0:02:12.5]} 17. b3 {[%clk 0:02:03.5]} 17... O-O {[%clk 0:02:09]} 18. Be2
{[%clk 0:01:48.5]} 18... a5 {[%clk 0:02:07.7]} 19. a4 {[%clk 0:01:44.7]} 19...
Rfd8 {[%clk 0:01:56.1]} 20. Rxd8+ {[%clk 0:01:41.3]} 20... Bxd8 {[%clk
0:01:37.7]} 21. Rd1 {[%clk 0:01:38.2]} 21... f6 {[%clk 0:01:35.7]} 22. Bd3
{[%clk 0:01:16.8]} 22... f5 {[%clk 0:01:32]} 23. Bc2 {[%clk 0:01:15.5]} 23...
Kf7 {[%clk 0:01:20.8]} 24. Ke2 {[%clk 0:01:10]} 24... g6 {[%clk 0:01:17.1]} 25.
Bc5 {[%clk 0:01:07.1]} 25... Be7 {[%clk 0:01:05.8]} 26. Bxe7 {[%clk 0:00:50.6]}
26... Kxe7 {[%clk 0:01:06.7]} 27. Kd2 {[%clk 0:00:45.1]} 27... Rd8+ {[%clk
0:01:05.2]} 28. Kc3 {[%clk 0:00:44.7]} 28... Rxd1 {[%clk 0:01:06.1]} 29. Bxd1
{[%clk 0:00:44.8]} 29... Kd6 {[%clk 0:01:02.2]} 30. b4 {[%clk 0:00:43]} 30... b6
{[%clk 0:01:02.4]} 31. c5+ {[%clk 0:00:38.3]} 31... bxc5 {[%clk 0:00:59.7]} 32.
bxa5 {[%clk 0:00:37.6]} 32... Bd5 {[%clk 0:00:45.3]} 33. Be2 {[%clk 0:00:34.7]}
33... Kc6 {[%clk 0:00:42.4]} 34. Bb5+ {[%clk 0:00:33.4]} 34... Kd6 {[%clk
0:00:39.2]} 35. a6 {[%clk 0:00:32.8]} 35... Kc7 {[%clk 0:00:37.2]} 36. a5 {[%clk
0:00:31.8]} 36... e4 {[%clk 0:00:35.3]} 37. fxe4 {[%clk 0:00:30.2]} 37... fxe4
{[%clk 0:00:35.4]} 38. g3 {[%clk 0:00:25.4]} 38... g5 {[%clk 0:00:33.7]} 39. Bc4
{[%clk 0:00:21]} 39... Bxc4 {[%clk 0:00:32.1]} 40. Kxc4 {[%clk 0:00:20.8]} 40...
Kb8 {[%clk 0:00:32.2]} 0-1

[Event "*** Titled Tuesday Blitz"]
[Site "Chess.com"]
[Date "2021.03.02"]
[Round "10"]
[White "enriquebutti"]
[Black "A-S-00"]
[Result "0-1"]
[WhiteElo "2190"]
[BlackElo "2399"]
[TimeControl "180+1"]
[EndTime "11:58:11 PST"]
[Termination "A-S-00 won by resignation"]

1. d4 {[%clk 0:03:00.8]} 1... Nf6 {[%clk 0:02:58.7]} 2. Nf3 {[%clk 0:03:00.3]}
2... g6 {[%clk 0:02:58.3]} 3. c4 {[%clk 0:02:59.7]} 3... Bg7 {[%clk 0:02:59.2]}
4. Nc3 {[%clk 0:02:59.4]} 4... d6 {[%clk 0:02:59.9]} 5. Bg5 {[%clk 0:02:58.7]}
5... O-O {[%clk 0:03:00.8]} 6. e3 {[%clk 0:02:58.4]} 6... Nbd7 {[%clk
0:02:59.7]} 7. Be2 {[%clk 0:02:57.6]} 7... h6 {[%clk 0:02:59.9]} 8. Bh4 {[%clk
0:02:57]} 8... c5 {[%clk 0:02:58.1]} 9. O-O {[%clk 0:02:55.1]} 9... b6 {[%clk
0:02:52.9]} 10. Qc2 {[%clk 0:02:53.4]} 10... Bb7 {[%clk 0:02:50.1]} 11. Rfd1
{[%clk 0:02:52.8]} 11... Rc8 {[%clk 0:02:42.7]} 12. b3 {[%clk 0:02:52]} 12...
cxd4 {[%clk 0:02:22]} 13. Nxd4 {[%clk 0:02:50.8]} 13... d5 {[%clk 0:02:19]} 14.
Bf3 {[%clk 0:02:24.3]} 14... Ne5 {[%clk 0:01:39.7]} 15. Bxf6 {[%clk 0:02:19.6]}
15... Nxf3+ {[%clk 0:01:36.6]} 16. Nxf3 {[%clk 0:02:19]} 16... Bxf6 {[%clk
0:01:37.3]} 17. Rac1 {[%clk 0:01:56.8]} 17... e6 {[%clk 0:01:26.8]} 18. Qe2
{[%clk 0:01:48]} 18... Qe7 {[%clk 0:01:20.3]} 19. Nb5 {[%clk 0:01:43.9]} 19...
a6 {[%clk 0:01:14.3]} 20. Nbd4 {[%clk 0:01:38.4]} 20... e5 {[%clk 0:01:13.4]}
21. Nc2 {[%clk 0:01:37.7]} 21... dxc4 {[%clk 0:01:13.5]} 22. bxc4 {[%clk
0:01:37.5]} 22... Rc5 {[%clk 0:01:10.1]} 23. Nd2 {[%clk 0:01:35.4]} 23... Qc7
{[%clk 0:01:05.4]} 24. Ne1 {[%clk 0:01:32.3]} 24... e4 {[%clk 0:00:51.2]} 25.
Nb3 {[%clk 0:01:31.2]} 25... Rc6 {[%clk 0:00:44.9]} 26. Nd4 {[%clk 0:01:30.8]}
26... Rd6 {[%clk 0:00:42.1]} 27. Rd2 {[%clk 0:01:13.5]} 27... Rc8 {[%clk
0:00:36.1]} 28. Nb3 {[%clk 0:01:07.5]} 28... Rc6 {[%clk 0:00:33.1]} 29. Rdc2
{[%clk 0:01:06.4]} 29... a5 {[%clk 0:00:29]} 30. Nd4 {[%clk 0:01:05.4]} 30...
Rc5 {[%clk 0:00:29.1]} 31. Nb5 {[%clk 0:01:03.9]} 31... Qe7 {[%clk 0:00:27]} 32.
Rd1 {[%clk 0:00:59.6]} 32... Ba6 {[%clk 0:00:26.2]} 33. Nd6 {[%clk 0:00:56.2]}
33... R8c6 {[%clk 0:00:26]} 34. Rcd2 {[%clk 0:00:54.8]} 34... Bc3 {[%clk
0:00:23.1]} 35. Rd5 {[%clk 0:00:53]} 35... Rxd5 {[%clk 0:00:20.6]} 36. cxd5
{[%clk 0:00:52.2]} 36... Bxe2 {[%clk 0:00:19.7]} 37. dxc6 {[%clk 0:00:51.1]}
37... Bxd1 {[%clk 0:00:19.8]} 38. Nb5 {[%clk 0:00:48.7]} 38... Bxe1 {[%clk
0:00:19.2]} 39. c7 {[%clk 0:00:48.6]} 39... Qc5 {[%clk 0:00:18.4]} 0-1